{"text_format":"1","workbook":"xlsx","n_sheets":4,"sheets":["Instructions","Declaration","Particulars","Summary"],"not_rendered":{"charts":0,"images":2,"macros":1,"external_links":0,"defined_names":5,"comments":0,"pivot_tables":0},"unopened":[],"bounds":{"document_bytes":16777216,"sheet_cells":100000,"rows_first":2000,"rows_last":500,"rows_between":2000,"halvings":0,"cell_chars":16384,"cell_head_chars":4096},"cells_cut":0,"cells_raw":0,"read":"whole","date_system":"1900"}

{"sheet":"Instructions","index":0,"n_rows":41,"n_cols":2,"rows_kept":41,"cut":false,"hidden":false,"merged":[[38,1,38,10],[34,1,34,10],[36,1,36,10],[40,1,40,10],[2,1,2,2],[4,1,28,10],[30,1,32,10]]}
[]
[]
[null,"Instructions"]
[]
[null,"1. Read the instructions carefully. An incomplete application form that does not comply with the requirements can result in rejection of application.\n\n2. ONLY COMPLETED application form is to be sent via email to scholarship@greateasternlife.com with the subject \"Supremacy Scholarship Application - YOUR FULL NAME. E.g. Supremacy Scholarship Application – ALI BIN ABU \n\n3. To complete this form, please download it, fill it up, save it, and send it back to the email address stated above. Do NOT PRINT OR CHANGE the format of this form as that will also result in rejection of the application. (Form is to be submitted in 'xlsm' format ONLY)\n\n4. Please complete the Declaration tab by filling in the required information at the stated area. \n\n5. The application needs to be completed in English.\n\n6. All fields are compulsory and MUST be filled up. For fields that do not apply to you, please select N/A (not applicable).\n\n7. Applicants MUST attach these documents with their application in the email: (all documents can be in PDF, DOC, GIF or JPEGformats)\n       • Scanned certified true copy of Identification card (front & back)\n       • Scanned certified true copies of academic certificates & transcripts (STPM / UEC / A-Levels / SAM / CPU \n         /Matriculation / Diploma / etc.)\n    **Please note: Applicants are required to bring the original of the submitted documents above if they are further \n                           shortlisted.\n\n8. All documents that are not in English or Bahasa Malaysia, MUST be translated and certified by either commissioner of oaths or schools/colleges before submission to us.\n\n9. Duly COMPLETED application form MUST reach us by: 15 August\n\n"]
[]
[]
[]
[]
[]
[]
[]
[]
[]
[]
[]
[]
[]
[]
[]
[]
[]
[]
[]
[]
[]
[]
[]
[]
[]
[null,"ONLY successful applicants will be notified via email and / or telephone.\nApplicants are required to enclose the following documents together with the completed scholarship application form before returning to Great Eastern Life for processing."]
[]
[]
[]
[null,"Completed Application Form in 'xls format'"]
[]
[null,"Scan copy of MyKad (identification card) "]
[]
[null,"Recent Passport sized photo"]
[]
[null,"Scan copy of STPM, UEC, A-Levels, SAM, CPU. Matriculation, Diploma certificates or its equivalent"]

{"sheet":"Declaration","index":1,"n_rows":103,"n_cols":16,"rows_kept":103,"cut":false,"hidden":false,"merged":[[99,2,99,6],[100,2,100,6],[99,9,99,11],[2,1,2,4],[96,1,97,14],[94,1,94,2],[4,1,92,14]]}
[]
[]
[null,"Data Protection / Data Peribadi"]
[]
[null,"By interacting with Great Eastern Life Assurance (Malaysia) Berhad, submitting information to the Company, or submitting your application for employment, internship or scholarship offered by the Company, you are providing Personal Data to the Company.\n\nApabila berurusan dengan Great Eastern Life Assurance (Malaysia) Berhad, dengan mengemukakan maklumat kepada Syarikat atau mengemukakan permohonan pekerjaan, latihan industri atau biasiswa yang ditawarkan Syarikat, anda telah memberi Data Peribadi kepada Syarikat.\n\n“Personal Data” means information about you, from which you are identifiable, including but not limited to, identity card number, driving license number, income tax reference number, residential address, residential telephone number, mobile phone number, education information, academic certificates, work experience information including references obtained from your present and previous employers or other referees, bank account number, EPF reference number, images, name(s), date(s) of birth and contact details of spouse or family members, next of kin or children, and any information generated or gathered during the course of your application for, or during your employment or internship or scholarship, and any “Sensitive Personal Data”. Sensitive Personal Data shall mean any information relating to your physical or mental health or condition, political opinions, religious beliefs or other beliefs of a similar nature, the commission or alleged commission by you of any offence.\n\n\"Data Peribadi\" bermaksud maklumat berkaitan anda, yang membolehkan anda dikenal pasti, termasuk tetapi tidak terhad pada nombor kad pengenalan, nombor lesen memandu, nombor rujukan cukai pendapatan, alamat kediaman, nombor telefon kediaman, nombor telefon bimbit, latar belakang pendidikan dan sijil akademik, maklumat pengalaman bekerja termasuk rujukan yang diperoleh daripada majikan sekarang dan bekas majikan atau rujukan lain, nombor akaun bank, nombor rujukan kumpulan wang simpanan pekerja, gambar, nama, tarikh lahir dan maklumat perhubungan bagi pasangan atau ahli keluarga, waris atau anak-anak serta sebarang maklumat yang diperoleh melalui permohonan anda atau semasa anda menjadi kakitangan atau pelatih industri atau menerima biasiswa serta sebarang “Data Peribadi Sensitif”. Data Peribadi Sensitif bermaksud sebarang maklumat berkenaan kesihatan fizikal atau mental atau keadaan anda, pendapat politik, kepercayaan agama atau kepercayaan lain yang bersifat seumpamanya, perlakuan atau pengataan perlakuan untuk sebarang kesalahan yang melibatkan anda.\n\nIf you provide us with any Personal Data relating to a third party, including where you have named them as a family member, or a previous or current employer or a character referee, by submitting such information to us, you represent to us that you have obtained the consent of the third party to you providing us with their Personal Data for the purposes set out herein. References to your “Personal Data” shall include the Personal Data of third parties provided by you.\n\nSekiranya anda memberikan kami Data Peribadi yang berkenaan pihak ketiga, termasuklah apabila anda telah menamakan mereka sebagai ahli keluarga atau bekas majikan atau majikan sekarang atau seseorang rujukan, dengan mengemukakan maklumat sedemikian kepada kami, anda telah menyatakan kepada kami bahawa anda telah terlebih dahulu memperoleh persetujuan daripada pihak ketiga bahawa anda akan memberikan kami Data Peribadi mereka bagi tujuan yang dinyatakan di sini. Rujukan bagi \" Data Peribadi \" hendaklah merangkumi Data Peribadi pihak ketiga yang anda telah beri.\n\nWe, Great Eastern Life Assurance (Malaysia) Berhad and the Great Eastern group of companies (“Great Eastern Group”) will use, record, store, archive, disclose or otherwise process the Personal Data gathered above and documents which are provided to us on and in connection with your application for, and during your employment or internship or scholarship, together with other information and documents we may obtain about you, for example from your referees, and from carrying out other character or credit/medical/compliance/criminal record checks, including Sensitive Personal Data \n(collectively, your “Personal Data”), for purposes which include but are not limited to:\n headcount and payroll planning;\n• assessing your suitability for employment, or for the offering of internship or scholarship;\n• general administrative and record keeping purposes;\n• headcount and payroll planning;\n• workforce development, training and certification;\n• performance management;\n• approving and monitoring employee benefits and entitlements;\n• responding to requests for employment references;\n• risk management and security purposes;\n• providing and monitoring access to the workplace, related facilities and systems;\n• for research and audit including but not limited to historical and statistical purposes;\n• internal investigations and legal proceedings;\n• regulatory approvals and compliance;\n• compliance with the law and any amendments in force, court orders or legal process; and\n• for such other purposes as may be required by law.\n\nKami, Great Eastern Life Assurance (Malaysia) Berhad dan kumpulan syarikat Great Eastern (“Kumpulan Great Eastern”) akan menggunakan, merekodkan, menyimpan, meletakkan dalam arkib, mendedahkan atau memproses Data Peribadi yang diperoleh di atas dan dokumen-dokumen yang diberi berhubung dengan permohonan pekerjaan, semasa anda menjadi kakitangan atau menjadi pelatih industri atau penerima biasiswa, berserta maklumat dan dokumen-dokumen lain yang kami peroleh berkenaan anda, contohnya daripada individu rujukan anda dan daripada semakan yang dijalankan ke atas perwatakan atau kredit/ perubatan/ pematuhan/ rekod jenayah, termasuk Data Peribadi Sensitif (secara kolektif, “Data Peribadi” anda) bagi tujuan yang termasuk serta tidak terhad pada:\n• penilaian kesesuaian pekerjaan ataupun menawarkan latihan industri atau biasiswa;\n• tujuan pentadbiran am dan simpanan rekod;\n• perancangan bilangan pekerja dan pembayaran gaji;\n• pembangunan tenaga kerja, latihan dan pensijilan;\n• pengurusan prestasi;\n• kelulusan dan pemantauan faedah serta hak pekerja\n• melayan permintaan untuk tujuan rujukan pekerjaan;\n•  pengurusan risiko dan tujuan keselamatan;\n• pemberian dan pemantauan akses di tempat kerja, kemudahan dan sistem yang berkaitan;\n• penyelidikan dan audit, termasuk tetapi tidak terhad bagi tujuan sejarah dan statistik;\n• penyiasatan dalaman dan prosiding undang-undang;\n• kelulusan dan pematuhan kawal selia;\n• pematuhan undang-undang dan sebarang pindaan yang berkuat kuasa, perintah mahkamah atau proses undang-undang; dan\n• tujuan-tujuan lain yang diperlukan dari segi undang-undang.\n\nDuring the course of your employment or internship or scholarship, and in connection with benefits available to you as an employee or intern or scholar, we may also use your Personal Data to offer you products and services of the Great Eastern Group or of other parties. Provision of your Personal Data is therefore necessary to us.\n\nDalam tempoh anda menjadi kakitangan atau menjadi pelatih industri atau menerima biasiswa serta berkaitan dengan manfaat yang disediakan kepada anda sebagai kakitangan atau pelatih industri atau penerima biasiswa, kami juga mungkin menggunakan Data Peribadi anda untuk menawarkan produk dan perkhidmatan daripada Kumpulan Great Eastern atau pihak lain. Oleh itu, adalah menjadi satu keperluan untuk memberikan Data Peribadi anda kepada pihak kami.\n\nIf you do not provide all the Personal Data requested herein or if you do not consent to the use of your Personal Data in the manner set out herein, the Company may not be able to offer you employment or internship or scholarship.\n\nJika anda tidak memberi semua Data Peribadi dalam borang ini seperti diperlukan atau jika anda tidak bersetuju terhadap penggunaan Data Peribadi tersebut mengikut cara yang dinyatakan dalam borang ini, Syarikat mungkin tidak dapat menawarkan anda pekerjaan, latihan industri atau biasiswa.\n\nWe may also disclose and transfer your Personal Data to the following parties (who may be located and use and process your Personal Data outside of Malaysia), which may not provide the same level of data protection as Malaysia:\nthird parties to whom the Company outsources certain of its internal functions;\n• other members of the Great Eastern Group and the OCBC group of companies, whether based in Malaysia or abroad;\n• the Company’s business partners, suppliers, service providers and agents;\n• new or potential employers should there be a corporate restructuring;\n• other parties from whom we receive an employment reference request, in accordance with the relevant statutory and regulatory requirements imposed on us at the material time; and/or\n• any person authorised by or under any law or by the order of a court.\n\nKami mungkin mendedahkan dan memindahkan Data Peribadi anda kepada pihak berikut (yang mungkin terletak dan menggunakan serta memproses Data Peribadi anda di luar Malaysia), yang mungkin tidak menyediakan tahap perlindungan data yang setara seperti di Malaysia:\n• pihak ketiga yang mana Syarikat menggunakan perkhidmatan luar untuk menjalankan fungsi dalaman Syarikat;\n• ahli lain dalam Kumpulan Great Eastern dan kumpulan syarikat OCBC, sama ada terletak di Malaysia atau di luar negara;\n• rakan niaga, pembekal, penyedia perkhidmatan dan ejen Syarikat;\n• majikan baharu atau syarikat yang berpotensi menjadi majikan sekiranya terdapat penstrukturan semula korporat;\n• pihak lain yang memohon rujukan pekerjaan daripada kami, menurut undang-undang yang berkaitan dan keperluan kawal selia yang dikenakan kepada kami pada masa yang material; dan/atau\n• sebarang pihak yang berkuasa atau di bawah sebarang undang-undang atau di bawah perintah mahkamah.\n\nIf your application is unsuccessful, or after the termination of our relationship (as may be applicable), we may retain your Personal Data for such time as deemed to be necessary for the purpose of fulfilling any operational, audit, investigation, legal, regulatory, tax or accounting requirements, including but not limited to any potential litigation.We may also contact you if other job opportunities arise in the future which we think may be suitable for you, either with us or with other companies within the Great Eastern Group.\n\nJika permohonan anda tidak berjaya ataupun selepas hubungan anda dengan syarikat kami telah tamat (mana yang berkenaan), kami mungkin akan menyimpan Data Peribadi anda dalam tempoh masa yang dianggap perlu untuk memenuhi sebarang keperluan operasi, audit, penyiasatan, undang-undang, kawal selia, cukai atau perakaunan, termasuk tetapi tidak terhad pada sebarang kemungkinan proses guaman. Kami juga mungkin menghubungi anda jika terdapat peluang pekerjaan lain yang mungkin ditawarkan pada masa hadapan sekiranya ia bersesuaian dengan anda, sama ada dengan kami atau dengan syarikat lain dalam Kumpulan Great Eastern.\n\nBy providing your Personal Data, you hereby expressly consent to Great Eastern Life Assurance (Malaysia) Berhad and the Great Eastern Group procuring and processing your Personal Data (including Sensitive Personal Data) in the manner as described above.\n\nDengan memberi Data Peribadi anda, anda bersetuju untuk Great Eastern Life Assurance (Malaysia) Berhad dan Kumpulan Great Eastern memperoleh dan memproses Data Peribadi tersebut (termasuk Data Peribadi Sensitif) mengikut cara seperti dinyatakan di atas.\n\nWe are committed to ensuring that your Personal Data is stored securely.\n\nKami akan memastikan Data Peribadi anda disimpan dengan selamat.\n\nYou have the right to ask for a copy of your Personal Data which we hold on you and which is subject to the applicable data protection laws in Malaysia (for which we may charge a reasonable fee for access) and to correct any inaccuracies in your information. However, we have the right to refuse such requests for access or correction for the reasons as permitted under law. Following from this, the information that we may release to you may not include information containing personal data of another data subject which includes, but is not limited to, the assessments and/or views of our interviewees or of your assessors.\n\nAnda berhak mendapatkan salinan Data Peribadi anda yang kami pegang dan tertakluk pada undang-undang perlindungan data yang digunakan di Malaysia (kami boleh mengenakan bayaran yang munasabah untuk akses) dan membetulkan sebarang perkara yang tidak tepat berkenaan maklumat anda. Walau bagaimanapun, kami berhak menolak permintaan untuk akses atau pembetulan atas sebab yang dibenarkan di bawah undang-undang. Sehubungan itu, maklumat yang kami keluarkan kepada anda mungkin tidak meliputi maklumat berkaitan data peribadi untuk subjek data lain yang termasuk serta tidak terhad pada penilaian dan /atau pendapat pihak yang ditemu bual atau pengganti anda.\n\nIf you would like to make an access or correction request or have any inquiries or complaints (such as limiting the processing of certain Personal Data), you may write to scholarship@greateasternlife.com.\n\nJika anda ingin memohon akses atau membuat pembetulan atau mempunyai sebarang pertanyaan atau aduan (seperti mengehadkan pemprosesan Data Peribadi tertentu), anda boleh menulis kepada scholarship@greateasternlife.com.\n\nThe Company may review and update this Personal Data Protection Notice from time to time to reflect changes in the law, changes in the Company’s business practices, procedures and structure, and changes in the community’s privacy expectations. It is not generally feasible to notify you of changes to this Personal Data Protection Notice and as such, you can contact Company’s Human Resource Manager to obtain the latest version of the Personal Data Protection Notice at any time.\n\nSyarikat mungkin menyemak semula dan mengemas kini Notis Perlindungan Data Peribadi ini dari semasa ke semasa disebabkan perubahan undang-undang, perubahan dalam amalan perniagaan, prosedur dan struktur Syarikat serta perubahan terhadap jangkaan tahap privasi oleh masyarakat. Kami mungkin tidak dapat memaklumkan anda terhadap perubahan bagi Notis Perlindungan Data Peribadi ini, oleh itu, anda boleh menghubungi Pengurus Sumber Manusia Syarikat bagi mendapatkan versi terkini Notis Perlindungan Data Peribadi pada bila-bila masa.\n"]
[]
[]
[]
[]
[]
[]
[]
[]
[]
[]
[]
[]
[]
[]
[]
[]
[]
[]
[]
[]
[]
[]
[]
[]
[]
[]
[]
[]
[]
[]
[]
[]
[]
[]
[]
[]
[]
[]
[]
[]
[]
[]
[]
[]
[]
[]
[]
[]
[]
[]
[]
[]
[]
[]
[]
[]
[]
[]
[]
[]
[]
[]
[]
[]
[]
[]
[]
[]
[]
[]
[]
[]
[]
[]
[]
[]
[]
[]
[]
[]
[]
[]
[]
[]
[]
[]
[]
[]
[]
[null,"Declaration"]
[]
[null,"I hereby certify that all statements made in this application are true and complete to the best of my knowledge and have not withheld any information which might influence the consideration of this application. I understand that any misrepresentation / false declaration or omission will be sufficient cause for cancellation of consideration for scholarship. I also authorize any investigation of the above information for the purpose of verification."]
[]
[]
[null,"Name:",null,null,null,null,null,null,"Date: "]
[null,"My Kad No:"]
[]
[null,null,null,null,null,null,null,null,null,null,null,null,null,null,null,{"$f":"CONCATENATE(Particulars!$C$7,\" - \",Particulars!$C$8)","v":" - "}]

{"sheet":"Particulars","index":2,"n_rows":154,"n_cols":10,"rows_kept":154,"cut":false,"hidden":false,"merged":[[148,5,148,8],[149,5,149,8],[150,5,150,8],[150,1,150,3],[35,3,35,4],[36,3,36,4],[37,3,37,4],[38,3,38,4],[55,2,55,4],[56,2,56,4],[57,2,57,4],[60,2,60,4],[134,1,134,8],[74,1,74,2],[55,5,55,7],[56,6,56,7],[151,1,151,3],[147,1,147,3],[148,1,148,3],[149,1,149,3],[61,2,61,4],[62,2,62,4],[94,1,94,2],[89,1,89,6],[108,1,108,2],[124,1,124,2],[90,2,90,5],[71,2,71,5],[151,5,151,8],[127,1,130,8],[136,1,144,8],[147,5,147,8],[5,1,5,2],[16,1,16,2],[6,2,6,6],[7,2,7,6],[8,2,8,6],[9,2,9,6],[10,2,10,6],[11,2,11,6],[12,2,12,6],[13,2,13,6],[28,1,28,2],[29,1,29,2],[46,5,46,6],[41,1,41,3],[42,2,42,5],[43,2,43,5],[70,1,70,4],[32,1,32,5],[33,1,33,5],[31,7,31,9],[51,1,51,3],[45,2,45,4],[66,1,67,1],[66,2,67,5],[68,2,68,5],[3,1,3,8],[32,7,32,9],[47,5,47,6],[19,1,19,2],[31,1,31,5],[19,5,19,6],[20,5,20,6],[21,5,21,6],[22,5,22,6],[24,5,24,6],[25,5,25,6],[27,5,27,6],[28,5,28,6],[29,5,29,6],[27,1,27,2],[26,1,26,2],[17,1,17,10],[23,1,23,2],[23,5,23,6],[26,5,26,6],[20,1,20,2],[21,1,21,2],[22,1,22,2],[24,1,24,2],[25,1,25,2]]}
[]
[]
[null,"Application Form"]
[null,"Important: The form must be fully completed. State ‘Not Applicable’ for sections / areas which do not apply to you"]
[]
["A","Personal Particulars"]
[null,"Full Name "]
[null,"MyKad Number (e.g. 010101-01-0101)"]
[null,"Age"]
[null,"Gender"]
[null,"Full Address"]
[null,"Contact Number (e.g. 012-3456789)"]
[null,"Place of Birth"]
[null,"Email Address"]
[]
[]
["B","Family Particulars"]
[null,"List out below the particulars of your family members. Eg. father, mother, brothers and sisters, as applicable"]
[]
[null,"Full Name",null,"Relationship","Age","Occupation",null,"Income","Living in same Residence/House"]
[]
[]
[]
[]
[]
[]
[]
[]
[]
[]
[]
[1,"Type of house you are presently living in? Own house/Rented/Others *",null,null,null,null,null,"[If others, please specify type of house]"]
[2,"Is either of your parents involved in business? Yes/No. ",null,null,null,null,null,"[If yes, please specify type of business]"]
[3,"Do your parents own assets/property(ies) other than your family home. If yes, please list below:"]
[]
[null,"Assets","Estimated Market Value","Owned Since (Year)"]
[]
[]
[]
[]
[]
["C","Only for applicants presently studying at Universities"]
[null,"Current university:"]
[null,"Course of study:"]
[null,"Year admitted:"]
[null,"Major:"]
[null,"Expected month of completion:",null,null,null,"Expected year of completion:"]
[null,"How is your study being financed currently? Self/ Loan/ Scholarship:"]
[null,"If you are receiving loan/scholarship, please state the source and amount. If none state \"N/A\":",null,null,null,null,null,"Amount:"]
[]
[]
["D","Only for applicants currently applying to Universities  "]
[null,"Kindly provide your intended course of study and university applied to in the order of preference "]
[]
[null,"Course of Study:                   "]
[null,1,null,null,null,"Expected month of completion:"]
[null,2,null,null,null,null,"Expected year of completion:"]
[null,3]
[]
[null,"Universities applied to: "]
[null,1]
[null,2]
[null,3]
[]
[]
["E","Education "]
[null,"Highest Education Level\n(STPM, A-Levels, Matriculation, Diploma or equivalent)"]
[]
[null,"Grade"]
[]
[null,"Sijil Pelajaran Malaysia – SPM or equivalent"]
[null,"School"]
[null,"Exam Year"]
[]
[null,"Please list all subjects"]
[null,"Subject ","Grade"]
[]
[]
[]
[]
[]
[]
[]
[]
[]
[]
[]
[]
[]
[null,"Highest Education Level - STPM/A-Levels/Matriculation, Diploma or equivalent"]
[null,"School/College"]
[null,"Exam Year"]
[null,"Overall Grade/CGPA"]
[]
[null,"Please list all subjects"]
[null,"Subject ","Grade"]
[]
[]
[]
[]
[]
[]
[]
[]
[]
[]
[]
[]
["F","Extra-Curricular Activities (Last 2 years only)"]
[null,"Provide in a separate attachment if space is insufficient "]
[]
[null,"Club & Society ","Position Held"]
[]
[]
[]
[]
[]
[null,"Sports Participated","Level Represented (School/District/State/ National)","Date"]
[]
[]
[]
[]
[]
[]
["G","Personal Achievements "]
[null,"Please list any information that you wish to bring to the attention of the Scholarship Selection Committee (in not more than 50 words)."]
[]
[]
[]
[]
[]
[]
[]
["H","Others"]
[null,"Tell us why you deserve this scholarship and how you can contribute to Great Eastern Life (in not more than 100 words)."]
[]
[]
[]
[]
[]
[]
[]
[]
[]
[]
[]
[null,"How did you find out about our supremacy scholarship programme? Please tick at the relevant box(es)"]
[null,"1. Social Media. Please specify: "]
[null,"2. Website. Please specify:"]
[null,"3. Family/friends"]
[null,"4. Great Eastern Life Planning Advisor/ Great Eastern Life Agent"]
[null,"5. Others. Please specify: "]
[]
[null,null,null,null,null,null,null,null,null,{"$f":"CONCATENATE($C$7,\" - \",$C$8)","v":" - "}]

{"sheet":"Summary","index":3,"n_rows":22,"n_cols":11,"rows_kept":22,"cut":false,"hidden":true,"merged":[]}
[]
[null,"Full Name",{"$f":"Particulars!C7","v":0}]
[null,"My Kad No",{"$f":"Particulars!C8","v":0}]
[null,"Age",{"$f":"Particulars!C9","v":0}]
[null,"Gender",{"$f":"Particulars!C10","v":0}]
[null,"Full Address",{"$f":"Particulars!C11","v":0}]
[null,"Contact No",{"$f":"Particulars!C12","v":0}]
[null,"Place of Birth",{"$f":"Particulars!C13","v":0}]
[null,"Email Address",{"$f":"Particulars!C14","v":0}]
[null,"Total Income",{"$f":"SUM(Particulars!H21:H30)","v":0}]
[null,"Assets (Y/N)",{"$f":"Particulars!G34","v":0}]
[null,"Highest Education Level",{"$f":"Particulars!C67","v":0}]
[null,"Grade",{"$f":"Particulars!C69","v":0},"A+","A","A-","B+","B","C+","C","D"]
[null,"SPM",{"$f":"_xlfn.LET(_xlpm.Grades,D13:K13,_xlpm.counts,D14:K14,_xlpm.filteredCounts, _xlfn._xlws.FILTER(_xlpm.counts, _xlpm.counts>0),_xlpm.filteredGrades,_xlfn._xlws.FILTER(_xlpm.Grades, _xlpm.counts>0),_xlpm.combined,_xlpm.filteredCounts & \" \" & _xlpm.filteredGrades,_xlfn.TEXTJOIN( \", \",TRUE,_xlpm.combined))","v":{"$error":"#VALUE!"}},{"$f":"COUNTIF(Particulars!$C$77:$C$88,D$13)","v":0},{"$f":"COUNTIF(Particulars!$C$77:$C$88,E$13)","v":0},{"$f":"COUNTIF(Particulars!$C$77:$C$88,F$13)","v":0},{"$f":"COUNTIF(Particulars!$C$77:$C$88,G$13)","v":0},{"$f":"COUNTIF(Particulars!$C$77:$C$88,H$13)","v":0},{"$f":"COUNTIF(Particulars!$C$77:$C$88,I$13)","v":0},{"$f":"COUNTIF(Particulars!$C$77:$C$88,J$13)","v":0},{"$f":"COUNTIF(Particulars!$C$77:$C$88,K$13)","v":0}]
[null,"Clubs",{"$f":"COUNTA(Particulars!B113:B116)","v":0}]
[null,"Sports",{"$f":"COUNTA(Particulars!B119:B122)","v":0}]
[null,"Course 1",{"$f":"Particulars!C56","v":0}]
[null,"Course 2",{"$f":"Particulars!C57","v":0}]
[null,"Course 3",{"$f":"Particulars!C58","v":0}]
[null,"University 1",{"$f":"Particulars!C61","v":0}]
[null,"University 2",{"$f":"Particulars!C62","v":0}]
[null,"University 3",{"$f":"Particulars!C63","v":0}]